bitfinex/quotes_SOLUSD_20240712
["timestamp","ask_amount","ask_price","bid_price","bid_amount"]
[1720774975076,14.56,136.08,136.05,25.7257]
[1720774975980,8.56,136.08,136.05,25.7257]
[1720774976771,14.56,136.07,136.02,24.8946]
[1720774976983,14.56,136.07,136.03,7.351]
[1720774977181,14.56,136.06,136.03,7.351]
[1720774977361,14.56,136.06,136.02,25.7305]
[1720774978287,14.56,136.06,136.01,16.3548]
[1720774978468,14.56,136.05,136.01,7.352]
[1720774978674,14.56,136.05,136.02,7.3518]
[1720774979785,14.56,136.05,136.01,7.3522]
[1720774980172,14.56,136.05,136.02,7.3518]
[1720774980381,14.56,136.06,136.02,7.3518]
[1720774980687,14.56,136.06,136.01,40.2929]
[1720774981774,14.56,136.05,136.01,25.7329]
[1720774982887,14.56,136.06,136.01,40.2929]
[1720774983594,15.4611,136.04,135.97,7.3544]
[1720774983762,14.56,136.02,135.97,7.3544]
[1720774983967,14.56,136.01,135.96,21.9149]
[1720774984377,14.56,136.02,135.97,21.9145]
[1720774985083,15.4611,136.04,135.98,7.3539]
[1720774985290,14.56,136.02,135.97,40.3004]
[1720774986991,14.56,136.01,135.97,25.7404]
[1720774987173,14.56,136.01,135.97,18.3861]
[1720774987781,14.56,136.01,135.97,25.7406]
[1720774988494,14.56,136.01,135.97,18.3861]
[1720774989678,14.56,136.01,135.96,7.3549]
[1720774989986,14.56,136.0,135.96,7.3549]
[1720774992181,14.56,136.01,135.96,40.3025]
[1720774992369,14.56,136.01,135.97,7.3545]
[1720774992894,14.56,136.01,135.96,40.3024]
[1720774993479,14.56,136.01,135.88,0.8551477]
[1720774993480,24.56,135.98,135.88,7.2811477]
[1720774993681,14.56,135.95,135.9,32.9553]
[1720774993886,14.56,135.95,135.92,7.3572]
[1720774994390,14.56,135.96,135.91,21.9175]
[1720774994989,14.56,135.96,135.92,7.3572]
[1720774995474,16.3323,135.99,135.92,7.3572]
[1720774995800,20.0,135.98,135.92,25.7503]
[1720774996117,7.3554,135.96,135.92,40.3103]
[1720774996299,7.3556,135.95,135.92,18.3931]
[1720774996492,7.3556,135.95,135.92,14.56]
[1720774996797,7.3556,135.95,135.91,14.56]
[1720774997187,7.3556,135.95,135.9,7.3581]
[1720774997498,7.3556,135.95,135.9,21.9181]
[1720774997701,21.9156,135.95,135.9,21.9181]
[1720774997875,7.3561,135.94,135.9,14.56]
[1720774998897,21.9158,135.95,135.9,21.9178]
[1720774999090,7.3558,135.95,135.91,14.56]
[1720775000698,14.56,135.96,135.88,7.2811477]
[1720775000699,7.3578,135.91,135.88,7.2811477]
[1720775000893,14.56,135.92,135.88,0.8551477]
[1720775001200,7.3578,135.91,135.88,0.8551477]
[1720775004197,21.9173,135.92,135.88,0.8551477]
[1720775004878,21.9173,135.92,135.88,15.4151477]
[1720775004879,7.3573,135.92,135.88,15.4151477]
[1720775005081,23.0851,135.94,135.89,21.9188]
[1720775005282,14.56,135.96,135.91,21.9173]
[1720775005492,7.3551,135.96,135.91,7.3573]
[1720775005697,7.3557,135.95,135.9,7.3582]
[1720775005886,7.3562,135.94,135.89,25.7554]
[1720775006199,7.3562,135.94,135.9,14.56]
[1720775006498,14.56,135.94,135.88,8.2143477]
[1720775006690,45.0,135.93,135.88,22.7743477]
[1720775006900,52.3569,135.93,135.89,14.56]
[1720775008898,52.3569,135.93,135.88,22.7743477]
[1720775010204,7.3574,135.92,135.88,0.8551477]
[1720775010407,21.9174,135.92,135.88,0.8551477]
[1720775010607,7.3578,135.91,135.88,0.8551477]
[1720775010826,21.9178,135.91,135.88,0.8551477]
[1720775011311,7.3583,135.9,135.88,0.8551477]
[1720775011485,21.918,135.91,135.88,0.8551477]
[1720775011688,7.358,135.91,135.88,0.8551477]
[1720775012605,7.3583,135.9,135.88,0.8551477]
[1720775015198,21.9188,135.89,135.88,0.8551477]
[1720775015512,7.3605,135.86,135.81,37.2072]
[1720775015710,21.9205,135.86,135.81,37.2072]
[1720775016095,21.9205,135.86,135.81,44.5701]
[1720775016691,7.3613,135.85,135.81,20.6257]
[1720775017002,26.04016696,135.88,135.79,7.3641]
[1720775017003,14.56,135.83,135.79,7.3641]
[1720775017206,7.3622,135.83,135.78,13.4612]
[1720775017415,21.9222,135.83,135.78,28.0212]
[1720775017712,10.0,135.86,135.8,7.3636]
[1720775017920,7.3616,135.84,135.79,40.3344]
[1720775018289,7.3623,135.83,135.79,18.4103]
[1720775018486,7.3623,135.83,135.79,25.7744]
[1720775018686,7.3617,135.84,135.79,40.3344]
[1720775018891,7.3617,135.84,135.8,14.56]
[1720775019718,21.9217,135.84,135.79,40.3344]
[1720775019891,7.3634,135.81,135.78,6.0964]
[1720775020092,14.56,135.83,135.78,20.6564]
[1720775021496,59.56,135.82,135.77,21.9253]
[1720775021688,59.56,135.82,135.76,21.9257]
[1720775022008,14.56,135.81,135.76,21.9257]
[1720775022315,7.3639,135.8,135.76,14.56]
[1720775022488,7.3639,135.8,135.76,21.9257]
[1720775023107,45.0,135.82,135.77,21.9253]
[1720775023305,21.9228,135.82,135.77,32.9733]
[1720775023630,21.9228,135.82,135.75,0.8551477]
[1720775023631,10.0,135.82,135.75,0.8551477]
[1720775023821,7.3643,135.79,135.75,15.4151477]
[1720775024318,21.9239,135.8,135.75,22.7814477]
[1720775024615,7.3639,135.8,135.76,7.3658]
[1720775024819,7.3639,135.8,135.76,21.9258]
[1720775025190,7.3646,135.79,135.75,0.8551477]
[1720775025395,7.3652,135.78,135.75,0.8551477]
[1720775025698,21.9244,135.79,135.75,0.8551477]
[1720775026995,21.9244,135.79,135.75,8.2215477]
[1720775028020,59.56,135.78,135.75,0.8551477]
[1720775028514,66.9249,135.78,135.75,0.8551477]
[1720775028716,21.9245,135.79,135.75,0.8551477]
[1720775028905,7.3645,135.79,135.75,15.4151477]
[1720775029521,7.3649,135.78,135.75,15.4151477]
[1720775029723,7.3647,135.79,135.75,22.7815477]
[1720775029924,7.3647,135.79,135.75,15.4151477]
[1720775031140,22.20234132,135.8,135.76,7.3654]
[1720775031314,7.64234132,135.8,135.79,21.9243]
[1720775031521,7.3619,135.84,135.79,40.335]
[1720775031719,7.3619,135.84,135.81,14.56]
[1720775031930,7.3621,135.83,135.79,18.4107]
[1720775032110,7.3627,135.82,135.8,14.56]
[1720775032305,7.3633,135.81,135.77,7.3653]
[1720775032510,7.3632,135.82,135.78,14.56]
[1720775032914,7.3636,135.81,135.76,39.7966]
[1720775033115,7.3636,135.81,135.78,14.56]
[1720775033310,36.45684216,135.85,135.78,14.56]
[1720775033645,14.56,135.83,135.78,14.56]
[1720775033804,52.3628,135.82,135.78,14.56]
[1720775034009,45.0,135.82,135.78,40.3365]
[1720775034210,45.0,135.82,135.79,7.3641]
[1720775034612,45.0,135.82,135.79,21.9241]
[1720775034817,7.3618,135.84,135.79,21.9241]
[1720775034818,45.0,135.83,135.79,21.9241]
[1720775035020,45.0,135.83,135.8,14.56]
[1720775035219,45.0,135.83,135.79,21.9241]
[1720775036009,7.3618,135.84,135.79,21.9241]
[1720775036230,7.3618,135.84,135.8,14.56]
[1720775037228,7.3622,135.83,135.8,14.56]
[1720775037932,7.3622,135.83,135.79,21.9241]
[1720775039233,7.3622,135.83,135.79,14.56]
[1720775040616,7.3622,135.83,135.8,14.56]
[1720775040941,7.3627,135.82,135.8,14.56]
[1720775041726,10.53144216,135.85,135.8,18.4092]
[1720775042040,23.1576,135.89,135.84,40.3256]
[1720775042241,7.3589,135.89,135.87,14.56]
[1720775042417,7.65095885,135.88,135.87,14.56]
[1720775042615,10.28877374,135.89,135.87,14.56]
[1720775042945,7.3587,135.9,135.87,14.56]
[1720775043520,7.358,135.91,135.88,14.56]
[1720775043713,23.44232138,135.92,135.88,14.56]
[1720775043714,7.3584,135.9,135.88,14.56]
[1720775043942,7.358,135.91,135.88,14.56]
[1720775044437,26.35023133,135.92,135.88,14.56]
[1720775044633,7.3584,135.9,135.85,7.3608]
[1720775046116,7.3599,135.88,135.84,18.404]
[1720775046518,7.3599,135.87,135.82,22.4416]
[1720775046735,7.3594,135.88,135.83,25.7671]
[1720775046934,7.3594,135.88,135.84,7.3614]
[1720775047639,26.35023133,135.92,135.85,7.361]
[1720775047845,7.3585,135.9,135.85,25.7636]
[1720775050144,45.0,135.91,135.85,18.4026]
[1720775050344,7.3594,135.88,135.85,18.4026]
[1720775051631,45.0,135.91,135.85,18.4026]
[1720775051825,26.35023133,135.92,135.85,18.4026]
[1720775052026,20.0,135.91,135.85,18.4026]
[1720775052247,27.3581,135.91,135.86,7.3602]
[1720775054148,20.0,135.91,135.86,7.3602]
[1720775054346,20.0,135.91,135.84,7.3614]
[1720775054524,45.0,135.9,135.84,7.3614]
[1720775055236,7.3597,135.88,135.83,7.3619]
[1720775056346,62.63898928,135.9,135.82,40.8471]
[1720775056552,7.3602,135.87,135.82,40.8471]
[1720775056730,7.3596,135.88,135.82,33.4849]
[1720775057536,52.63898928,135.9,135.83,7.89401742]
[1720775057737,7.3597,135.88,135.83,7.89401742]
[1720775058246,7.3597,135.88,135.83,7.362]
[1720775058429,7.3597,135.88,135.84,7.3612]
[1720775058635,7.359,135.89,135.84,7.3612]
[1720775059058,7.359,135.89,135.85,7.3609]
[1720775059237,59.99748928,135.9,135.85,7.3609]
[1720775060245,7.359,135.89,135.85,7.3609]
[1720775060842,14.99748928,135.9,135.85,7.3609]
[1720775064761,14.99748928,135.9,135.86,7.3604]
[1720775066064,14.99748928,135.9,135.85,7.3608]
[1720775066363,7.3589,135.89,135.85,7.3608]
[1720775066538,7.3589,135.89,135.86,14.6]
[1720775067465,14.99748928,135.9,135.86,14.6]
[1720775068237,14.99748928,135.9,135.86,21.9604]
[1720775070672,14.99748928,135.9,135.86,14.6]
[1720775070965,7.359,135.89,135.86,14.6]
[1720775071201,7.63898928,135.9,135.82,15.0792]
[1720775071346,7.3602,135.87,135.82,15.0792]
[1720775071553,7.3605,135.86,135.83,14.6]
[1720775072550,7.3602,135.87,135.83,14.6]
[1720775072755,7.3602,135.87,135.83,21.9619]
[1720775072956,7.3602,135.87,135.84,14.6]
[1720775073473,7.3602,135.87,135.83,14.6]
[1720775074466,7.3602,135.87,135.81,24.5167]
[1720775074670,7.3602,135.87,135.83,14.6]
[1720775074847,7.3602,135.87,135.83,21.962]
[1720775075654,7.3602,135.87,135.83,14.6]
[1720775076164,7.3602,135.87,135.83,21.962]
[1720775076778,7.3602,135.87,135.83,14.6]
[1720775077370,6.87377331,135.87,135.83,14.6]
[1720775077873,6.87377331,135.87,135.84,14.6]
[1720775080759,6.87377331,135.87,135.83,7.3619]
[1720775080967,14.99652901,135.88,135.85,14.6]
[1720775081778,7.63702901,135.88,135.85,18.4022]
[1720775081978,7.3579,135.91,135.87,14.6]
[1720775082172,7.3579,135.91,135.88,14.6]
[1720775082684,7.3578,135.91,135.87,14.6]
[1720775082862,7.3578,135.91,135.88,14.6]
[1720775084681,7.64230409,135.93,135.89,14.6]
[1720775084866,7.64230409,135.93,135.87,20.7384]
[1720775085180,21.22923217,135.97,135.92,21.9567]
[1720775085181,7.3547,135.97,135.92,21.9567]
[1720775085372,7.3547,135.97,135.93,14.6]
[1720775086269,10.60514203,135.98,135.93,14.6]
[1720775086585,25.20514203,135.98,135.93,14.6]
[1720775086754,14.6,135.97,135.92,14.6]
[1720775086960,7.3572,135.92,135.88,18.3978]
[1720775087488,7.3565,135.94,135.9,14.6]
[1720775087662,7.3562,135.94,135.9,14.6]
[1720775087864,7.3567,135.93,135.88,40.3571]
[1720775088063,21.9567,135.93,135.88,40.3571]
[1720775089182,21.9567,135.93,135.89,7.3588]
[1720775089380,7.3563,135.94,135.89,7.3588]
[1720775089683,45.0,135.93,135.89,21.9588]
[1720775090083,14.6,135.94,135.9,18.3955]
[1720775090289,10.60514203,135.98,135.93,14.6]
[1720775090595,7.64331085,135.98,135.95,7.3555]
[1720775090885,22.24331085,135.98,135.95,7.3555]
[1720775091589,22.24331085,135.98,135.94,25.7461]
[1720775091769,7.64331085,135.98,135.94,25.7461]
[1720775092088,7.64331085,135.98,135.94,18.39]
[1720775092089,14.99741085,135.98,135.94,18.39]
[1720775092292,7.64331085,135.98,135.97,7.3545]
[1720775092466,37.58533217,136.02,135.97,21.9545]
[1720775092784,22.98533217,136.02,135.96,25.742]
[1720775093085,7.3528,136.01,135.96,25.742]
[1720775094882,7.3528,136.01,135.97,7.3544]
[1720775095479,7.3528,136.01,135.96,25.742]
[1720775095681,22.98533217,136.02,135.96,25.742]
[1720775095682,7.3529,136.0,135.96,25.742]
[1720775096673,7.3525,136.01,135.96,25.742]
[1720775097087,52.353,136.0,135.96,18.3871]
[1720775097288,45.0,136.0,135.95,7.3554]
[1720775097490,7.3535,135.99,135.95,7.3554]
[1720775100285,7.354,135.98,135.94,7.356]
[1720775100594,7.3531,136.0,135.95,7.3555]
[1720775100797,45.0,135.99,135.96,7.3551]
[1720775101093,16.3561,136.02,135.96,7.3551]
[1720775101296,52.3524,136.01,135.96,7.3551]
[1720775101699,7.353,136.0,135.96,7.3551]
[1720775102204,7.3534,135.99,135.95,25.7438]
[1720775102876,7.3542,135.98,135.94,7.356]
[1720775103082,7.3542,135.98,135.92,25.027]
[1720775103083,45.0,135.97,135.93,7.3565]
[1720775103379,45.0,135.97,135.92,25.027]
[1720775103604,52.3545,135.97,135.93,7.3565]
[1720775103896,45.0,135.97,135.93,7.3565]
[1720775104073,7.354,135.98,135.94,7.356]
[1720775104277,7.3536,135.99,135.94,25.7463]
[1720775104598,45.0,135.98,135.95,7.3555]
[1720775104791,45.0,135.98,135.94,25.7462]
[1720775105502,52.354,135.98,135.94,25.7462]
[1720775107101,45.0,135.98,135.92,6.6347]
[1720775107292,7.3552,135.96,135.92,7.3572]
[1720775107680,7.3547,135.97,135.92,7.3572]
[1720775107881,45.0,135.96,135.92,7.3572]
[1720775108509,45.0,135.96,135.93,7.3567]
[1720775109186,45.0,135.97,135.93,7.3567]
[1720775109391,52.3546,135.97,135.92,7.357]
[1720775110906,52.3546,135.97,135.93,7.3566]
[1720775111406,7.354,135.98,135.93,18.3916]
[1720775111590,7.63503601,136.0,135.93,25.7479]
[1720775111591,7.3546,135.97,135.93,25.7479]
[1720775111989,7.3542,135.98,135.93,25.7479]
[1720775112689,21.9342,135.98,135.93,40.3279]
[1720775113005,7.3542,135.98,135.94,21.9361]
[1720775113194,7.3545,135.97,135.94,14.58]
[1720775113508,7.3545,135.97,135.93,40.3281]
[1720775114104,7.3545,135.97,135.93,32.9716]
[1720775116432,7.63503601,136.0,135.97,18.3864]
[1720775116709,16.3561,136.02,135.98,14.58]
[1720775116710,7.3524,136.01,135.98,14.58]
[1720775116911,7.3524,136.01,135.97,25.7407]
[1720775116912,7.3524,136.01,135.97,40.3207]
[1720775117112,7.3524,136.01,135.97,32.9664]
[1720775117296,7.3524,136.01,135.97,40.3208]
[1720775119316,7.3524,136.01,135.98,14.58]
[1720775119494,41.20597268,136.02,135.97,40.3208]
[1720775119689,26.62597268,136.02,135.97,25.7408]
[1720775119889,26.62597268,136.02,135.98,14.58]
[1720775120414,16.3561,136.02,135.99,7.3534]
[1720775120601,7.62982628,136.03,136.0,21.9328]
[1720775120808,24.88955711,136.05,136.0,21.9328]
[1720775121010,21.9302,136.05,136.0,21.9328]
[1720775121621,7.3513,136.03,136.0,14.58]
[1720775121922,7.3513,136.03,135.99,40.3166]
[1720775122320,7.3519,136.02,135.98,7.3539]
[1720775122625,21.9319,136.02,135.98,7.3539]
[1720775123625,21.9319,136.02,135.97,7.3543]
[1720775123922,21.9319,136.02,135.97,21.9343]
[1720775124425,14.58,136.01,135.97,7.3543]
[1720775124627,7.3524,136.01,135.97,7.3543]
[1720775126236,15.154,136.02,135.94,6.2805]
[1720775126397,7.3539,135.99,135.94,13.6362]
[1720775126604,7.3539,135.99,135.94,7.3557]
[1720775127724,7.3539,135.99,135.94,7.356]
[1720775128108,52.3543,135.98,135.93,18.3907]
[1720775128999,7.3545,135.97,135.93,25.7472]
[1720775129402,7.3545,135.97,135.93,18.3907]
[1720775129599,7.3552,135.96,135.91,13.4785]
[1720775129820,7.3552,135.96,135.92,7.3572]
[1720775130012,7.3552,135.96,135.91,7.3576]
[1720775131527,14.98920058,135.96,135.91,7.3576]
[1720775132023,52.3556,135.95,135.9,25.7526]
[1720775132506,52.3556,135.95,135.91,7.3576]
[1720775134025,52.3556,135.95,135.9,18.3945]
[1720775134206,52.3556,135.95,135.9,25.7527]
[1720775134404,45.0,135.95,135.88,7.359]
[1720775134615,7.3576,135.92,135.88,7.359]
[1720775135532,7.3569,135.93,135.88,7.359]
[1720775135709,7.3569,135.93,135.89,7.3588]
[1720775135911,7.3563,135.94,135.9,7.3581]
[1720775136135,52.3557,135.95,135.91,7.3577]
[1720775136316,52.3557,135.95,135.9,7.3581]
[1720775136519,52.3557,135.95,135.91,7.3578]
[1720775136838,52.3558,135.95,135.9,7.3581]
[1720775137724,7.3561,135.94,135.9,7.3581]
[1720775138112,7.3567,135.93,135.89,25.7559]
[1720775138317,7.3572,135.92,135.89,18.3972]
[1720775138719,7.3569,135.93,135.89,25.7559]
[1720775138917,7.3564,135.94,135.9,7.3582]
[1720775140720,7.3564,135.94,135.89,25.7558]
[1720775141235,7.3567,135.93,135.89,25.7558]
[1720775141734,7.3567,135.93,135.89,18.3972]
[1720775141937,7.3575,135.92,135.88,7.3592]
[1720775143310,7.3568,135.93,135.89,7.3588]
[1720775143711,7.3563,135.94,135.89,7.3588]
[1720775143930,7.3563,135.94,135.9,7.3582]
[1720775144631,21.9463,135.94,135.9,7.3582]
[1720775144936,7.3563,135.94,135.9,21.9482]
[1720775145229,7.3567,135.93,135.9,14.59]
[1720775145438,7.3567,135.93,135.89,21.9486]
[1720775145816,7.3572,135.92,135.88,40.3474]
[1720775146253,7.3572,135.92,135.88,25.7574]
[1720775146540,7.3572,135.92,135.88,40.3474]
[1720775146950,7.3572,135.92,135.88,25.7574]
[1720775147109,7.3579,135.91,135.87,7.3598]
[1720775147626,7.3579,135.91,135.87,21.9498]
[1720775147832,7.3584,135.9,135.86,7.3602]
[1720775148025,7.3584,135.9,135.86,21.9502]
[1720775149138,21.948,135.91,135.86,21.9502]
[1720775149549,21.948,135.91,135.87,7.3599]
[1720775151218,7.3588,135.89,135.85,25.7622]
[1720775151413,7.3588,135.89,135.85,40.3522]
[1720775151817,7.3588,135.89,135.85,25.7622]
[1720775153340,21.9485,135.9,135.86,7.3603]
[1720775155937,21.948,135.91,135.86,21.9503]
[1720775156247,7.358,135.91,135.87,14.59]
[1720775156431,30.6209,135.92,135.88,21.9493]
[1720775156432,16.0309,135.92,135.88,21.9493]
[1720775156651,29.5759205,135.94,135.9,7.3582]
[1720775156837,7.3564,135.94,135.9,21.9482]
[1720775158042,7.3567,135.93,135.9,14.59]
[1720775158247,7.3567,135.93,135.89,25.7558]
[1720775158248,7.3567,135.93,135.89,40.3458]
[1720775160753,14.59,135.94,135.89,14.59]
[1720775160754,7.3574,135.92,135.89,14.59]
[1720775161048,7.3574,135.92,135.88,21.9492]
[1720775161278,21.9474,135.92,135.88,7.3592]
[1720775161746,7.358,135.91,135.87,14.59]
[1720775162051,7.358,135.91,135.87,21.9497]
[1720775162454,7.3584,135.9,135.87,14.59]
[1720775163449,7.3584,135.9,135.86,40.3515]
[1720775163655,7.3589,135.89,135.86,32.9912]
[1720775163841,7.3589,135.89,135.86,18.4012]
[1720775164943,7.3585,135.9,135.86,25.7617]
[1720775166866,7.3585,135.9,135.86,40.3517]
[1720775167032,7.3579,135.91,135.87,21.9499]
[1720775167238,7.3574,135.92,135.88,14.59]
[1720775167647,7.3581,135.91,135.88,14.59]
[1720775168147,7.3583,135.9,135.88,14.59]
[1720775169440,7.3583,135.9,135.87,14.59]
[1720775169745,7.3583,135.9,135.87,15.47419447]
[1720775170266,7.3583,135.9,135.87,14.59]
[1720775170772,7.3583,135.9,135.86,40.3515]
[1720775171475,7.359,135.89,135.86,32.9912]
[1720775171841,7.359,135.89,135.86,14.59]
[1720775172070,7.359,135.89,135.85,21.951]
[1720775173768,7.61599501,135.93,135.88,14.59]
[1720775173962,7.61599501,135.93,135.89,14.59]
[1720775173963,7.3576,135.92,135.89,14.59]
[1720775174374,7.3579,135.91,135.88,18.3982]
[1720775174671,7.3579,135.91,135.88,32.9882]
[1720775174870,7.3583,135.9,135.86,30.1836]
[1720775175070,7.3583,135.9,135.86,21.9502]
[1720775175753,7.3583,135.9,135.86,7.3602]
[1720775175971,21.9483,135.9,135.86,7.3602]
[1720775177477,7.3583,135.9,135.86,21.9502]
[1720775177849,21.948,135.91,135.86,21.9502]
[1720775178054,7.3579,135.91,135.87,40.3496]
[1720775178269,7.3574,135.92,135.88,21.9493]
[1720775178664,14.59,135.93,135.89,7.3588]
[1720775178665,7.3569,135.93,135.89,7.3588]
[1720775179349,7.3572,135.92,135.88,25.7564]
[1720775180274,7.3572,135.92,135.88,18.3972]
[1720775180573,7.3572,135.92,135.88,25.7564]
[1720775186580,7.3579,135.91,135.87,7.3598]
[1720775186871,7.3579,135.91,135.86,7.3602]
[1720775187375,7.3579,135.91,135.87,7.3599]
[1720775188363,7.3583,135.9,135.85,18.4014]
[1720775189377,7.3583,135.9,135.86,7.3604]
[1720775189680,7.61912795,135.92,135.84,7.3613]
[1720775189681,7.3594,135.88,135.84,7.3613]
[1720775189853,18.3946,135.91,135.83,18.4053]
[1720775190058,7.3605,135.86,135.82,13.6228]
[1720775190364,7.3602,135.87,135.82,32.0294]
[1720775190676,7.3602,135.87,135.83,7.3621]
[1720775191085,7.36,135.87,135.83,7.3621]
[1720775191461,65.0,135.9,135.82,32.0296]
[1720775191462,7.3605,135.86,135.82,32.0296]
[1720775191661,7.3605,135.86,135.82,25.769]
[1720775192872,7.3601,135.87,135.82,25.769]
[1720775195486,7.3601,135.87,135.83,7.362]
[1720775198201,7.3596,135.88,135.84,7.3615]
[1720775198401,7.3593,135.89,135.85,7.3607]
[1720775198584,7.3589,135.89,135.85,7.3608]
[1720775199187,27.06657441,135.92,135.84,16.2888]
[1720775199390,34.07139576,135.92,135.88,7.3594]
[1720775199572,7.3578,135.91,135.87,7.3597]
[1720775200470,7.3578,135.91,135.86,25.7609]
[1720775200804,7.3584,135.9,135.86,18.4005]
[1720775200974,7.3589,135.89,135.86,18.4005]
[1720775202097,7.3584,135.9,135.86,25.7609]
[1720775204603,7.3599,135.87,135.83,32.0503]
[1720775204820,7.3599,135.87,135.83,46.6403]
[1720775204986,7.3599,135.87,135.83,32.0503]
[1720775205682,21.9496,135.88,135.83,46.6403]
[1720775205883,14.59,135.88,135.84,7.3615]
[1720775206879,21.9494,135.88,135.84,7.3615]
[1720775208701,7.3594,135.88,135.84,7.3615]
[1720775209081,21.9494,135.88,135.84,7.3615]
[1720775209301,7.3594,135.88,135.84,7.3615]
[1720775209508,7.3594,135.88,135.84,21.9515]
[1720775210080,14.92916906,135.9,135.86,7.3599]
[1720775210283,7.57076906,135.9,135.87,7.3599]
[1720775210591,21.9482,135.91,135.87,7.3599]
[1720775210907,21.9482,135.91,135.86,21.9503]
[1720775211310,19.09466781,135.92,135.88,7.359]
[1720775211615,24.89236781,135.92,135.87,40.3493]
[1720775211910,7.3579,135.91,135.87,40.3493]
[1720775212482,10.30226781,135.92,135.88,21.9491]
[1720775212703,2.94486781,135.92,135.87,18.3996]
[1720775212902,14.59,135.92,135.87,32.9896]
[1720775213509,7.3578,135.91,135.87,40.3492]
[1720775214085,7.3578,135.91,135.87,32.9896]
[1720775214293,7.3585,135.9,135.86,21.9503]
[1720775215191,7.3585,135.9,135.86,7.3603]
[1720775215401,7.3585,135.9,135.85,36.9766]
[1720775215402,14.59,135.9,135.85,36.9766]
[1720775215596,7.3584,135.9,135.86,14.59]
[1720775216814,7.3584,135.9,135.85,21.9509]
[1720775217119,21.9484,135.9,135.85,21.9509]
[1720775218195,21.9484,135.9,135.86,7.3604]
[1720775219119,14.59,135.89,135.84,18.4026]
[1720775219308,21.95,135.87,135.83,7.362]
[1720775221803,14.59,135.87,135.83,7.362]
[1720775222507,21.9499,135.87,135.83,7.362]
[1720775224295,7.3599,135.87,135.83,21.952]
[1720775225013,21.9496,135.88,135.83,21.952]
[1720775225207,7.3596,135.88,135.84,21.9514]
[1720775225597,22.16460484,135.89,135.84,21.9514]
[1720775225797,7.57460484,135.89,135.85,7.3607]
[1720775226009,22.8332,135.9,135.86,21.9505]
[1720775227019,7.3579,135.91,135.87,7.3598]
[1720775227904,7.3579,135.91,135.87,31.9498]
[1720775228217,21.9474,135.92,135.87,31.9498]
[1720775229722,7.358,135.91,135.87,17.3598]
[1720775230026,7.358,135.91,135.87,31.9498]
[1720775231122,6.358,135.91,135.87,31.9498]
[1720775231345,21.9474,135.92,135.88,7.3593]
[1720775231513,14.94053888,135.93,135.89,14.59]
[1720775231718,7.3569,135.93,135.89,14.59]
[1720775234243,7.3567,135.93,135.9,14.59]
[1720775235636,7.3567,135.93,135.89,25.7551]
[1720775235637,7.3567,135.93,135.89,40.3451]
[1720775236447,7.3564,135.94,135.89,40.3451]
[1720775236640,7.3564,135.94,135.9,21.9482]
[1720775236947,14.59,135.95,135.91,14.59]
[1720775236948,7.3558,135.95,135.91,14.59]
[1720775238052,7.3562,135.94,135.91,14.59]
[1720775238953,7.3562,135.94,135.9,21.9482]
[1720775239460,7.3562,135.94,135.9,7.3582]
[1720775239632,7.3558,135.95,135.91,14.59]
[1720775240566,7.3561,135.94,135.91,14.59]
[1720775241157,7.3572,135.92,135.87,10.0]
[1720775241449,7.3572,135.92,135.81,48.3363]